[Event "Anderssen Festival 2019"]
[Site "Wroclaw"]
[Date "2019.08.08"]
[Round "5.16"]
[White "Gluch, Pawel"]
[Black "Luberanski, Jakub"]
[Result "0-1"]
[ECO "A26"]
[WhiteElo "1739"]
[BlackElo "2010"]
[Annotator "NA"]
[PlyCount "40"]
[EventDate "2019.08.05"]
[EventType "swiss"]
[EventCountry "POL"]
[SourceTitle "playchess.com"]
[Source "ChessBase"]
[SourceQuality "1"]
[TimeControl "40/5400+30:900+30"]

1. c4 {[%emt 0:00:00]} Nf6 {[%emt 0:00:00]} 2. Nc3 {[%emt 0:00:00]} g6 {[%emt 0:00:17]} 3. Nf3 {[%emt 0:00:10]} Bg7 {[%emt 0:00:05]} 4. g3 {[%emt 0:00:52]} O-O {[%emt 0:00:05]} 5. Bg2 {[%emt 0:00:03]} d6 {[%emt 0:00:24]} 6. O-O {[%emt 0:00:25]} e5 {[%emt 0:00:38]} 7. d3 {[%emt 0:03:08]} Nc6 {[%emt 0:00:30]} 8. Rb1 {[%emt 0:01:27]} a5 {[%emt 0:00:05]} 9. a3 {[%emt 0:01:12]} Re8 {[%emt 0:00:25]} 10. b4 {[%emt 0:03:06]} axb4 {[%emt 0:00:06]} 11. axb4 {[%emt 0:00:04]} e4 {[%emt 0:03:34]} 12. Nxe4 {[%emt 0:05:39]} Nxe4 {[%emt 0:00:04]} 13. dxe4 {[%emt 0:00:05]} Rxe4 {[%emt 0:00:18]} 14. Ng5 {[%emt 0:12:00]} Re8 {[%emt 0:17:48]} 15. Bd5 {[%emt 0:13:24]} Rf8 {[%emt 0:00:07]} 16. Ne4 {[%emt 0:05:21]} Ne7 {[%emt 0:03:40]} 17. Bb2 {[%emt 0:07:45]} c6 {[%emt 0:05:13]} 18. Bxg7 {[%emt 0:01:10]} Kxg7 {[%emt 0:00:09]} 19. Nf6 {[%emt 0:05:00]} Nxd5 {[%emt 0:03:59]} 20. Nxd5 {[%emt 0:00:58]} cxd5 {[%emt 0:00:04]} 0-1

[Event "Anderssen Festival 2019"]
[Site "Wroclaw"]
[Date "2019.08.08"]
[Round "5.17"]
[White "Piekielny, Pawel"]
[Black "Skiba, Krzysztof"]
[Result "1-0"]
[ECO "C06"]
[WhiteElo "1985"]
[BlackElo "1722"]
[Annotator "NA"]
[PlyCount "155"]
[EventDate "2019.08.05"]
[EventType "swiss"]
[EventCountry "POL"]
[SourceTitle "playchess.com"]
[Source "ChessBase"]
[SourceQuality "1"]
[TimeControl "40/5400+30:900+30"]

1. e4 {[%emt 0:00:00]} e6 {[%emt 0:00:00]} 2. d4 {[%emt 0:00:30]} d5 {[%emt 0:00:30]} 3. Nd2 {[%emt 0:00:30]} Nf6 {[%emt 0:00:30]} 4. e5 {[%emt 0:00:21]} Nfd7 {[%emt 0:00:31]} 5. Bd3 {[%emt 0:00:30]} c5 {[%emt 0:00:11]} 6. c3 {[%emt 0:00:30]} Nc6 {[%emt 0:00:30]} 7. Ne2 {[%emt 0:00:30]} cxd4 {[%emt 0:00:05]} 8. cxd4 {[%emt 0:00:10]} f6 {[%emt 0:00:36]} 9. exf6 {[%emt 0:00:30]} Nxf6 {[%emt 0:00:30]} 10. Nf3 {[%emt 0:00:11]} Bd6 {[%emt 0:00:30]} 11. O-O {[%emt 0:00:15]} O-O {[%emt 0:00:11]} 12. Bf4 {[%emt 0:00:30]} Bxf4 {[%emt 0:00:46]} 13. Nxf4 {[%emt 0:00:30]} Ne4 {[%emt 0:03:17]} 14. Qc1 {[%emt 0:00:30]} Bd7 {[%emt 0:14:40]} 15. Qe3 {[%emt 0:06:52]} Ng5 {[%emt 0:14:36]} 16. Ne5 {[%emt 0:04:00]} Nxe5 {[%emt 0:01:03]} 17. dxe5 {[%emt 0:11:47]} Qe7 {[%emt 0:02:52]} 18. Rac1 {[%emt 0:11:52]} Bc6 19. Ne2 {[%emt 0:00:30]} Rac8 20. a3 {[%emt 0:00:30]} a6 21. Nd4 {[%emt 0:00:30]} Bd7 22. f4 {[%emt 0:00:30]} Nf7 23. Nb3 {[%emt 0:00:30]} g6 24. g3 {[%emt 0:00:30]} Rfd8 25. Qd4 {[%emt 0:00:30]} Nh6 26. Qb6 {[%emt 0:00:30]} Ng4 27. Rxc8 {[%emt 0:05:03]} Rxc8 28. h3 {[%emt 0:03:56]} Nxe5 29. fxe5 {[%emt 0:00:21]} Qg5 30. Qf2 {[%emt 0:01:49]} Qxe5 31. Qf4 {[%emt 0:04:18]} Qxf4 32. gxf4 {[%emt 0:00:30]} Kf7 33. Kg2 {[%emt 0:00:15]} Kf6 34. Re1 {[%emt 0:00:27]} h6 35. Kg3 {[%emt 0:00:58]} g5 36. Nd4 {[%emt 0:01:51]} Rg8 37. Nf3 {[%emt 0:00:52]} gxf4+ 38. Kxf4 {[%emt 0:00:05]} Rg2 39. Re2 {[%emt 0:02:01]} Rxe2 40. Bxe2 {[%emt 0:00:30]} e5+ 41. Nxe5 {[%emt 0:15:30]} Bxh3 42. Bf3 {[%emt 0:01:03]} Ke6 43. Ng4 {[%emt 0:02:06]} Kd6 44. Ke3 {[%emt 0:01:08]} Kc5 45. Ne5 {[%emt 0:06:33]} Bf1 46. Kd2 {[%emt 0:04:55]} a5 47. Ng4 {[%emt 0:02:02]} a4 48. Ne3 {[%emt 0:03:15]} Bc4 49. Nf5 {[%emt 0:00:30]} Bf1 50. Kc3 {[%emt 0:00:52]} b5 51. Nxh6 {[%emt 0:01:56]} d4+ 52. Kc2 {[%emt 0:00:16]} Kc4 53. Ng4 {[%emt 0:01:56]} b4 54. Ne5+ {[%emt 0:00:52]} Kb5 55. Nd3 {[%emt 0:00:53]} bxa3 56. bxa3 {[%emt 0:00:30]} Kc4 57. Nb2+ {[%emt 0:00:06]} Kb5 58. Bh5 {[%emt 0:00:30]} Ka5 59. Be8 {[%emt 0:00:10]} Be2 60. Bxa4 {[%emt 0:00:43]} Bf1 61. Bc6 {[%emt 0:01:45]} Be2 62. Be4 {[%emt 0:00:30]} Bb5 63. Kd2 {[%emt 0:00:53]} Ba6 64. Bf3 {[%emt 0:00:06]} Bb5 65. Be2 {[%emt 0:00:16]} Bc6 66. Bd3 {[%emt 0:00:47]} Bb7 67. Ke2 {[%emt 0:00:30]} Kb6 68. Kf2 {[%emt 0:00:30]} Kc5 69. Kg3 {[%emt 0:00:05]} Bc6 70. Kf4 {[%emt 0:00:11]} Bd7 71. Ke5 {[%emt 0:00:11]} Be8 72. Bc2 {[%emt 0:03:46]} Bb5 73. Ke4 {[%emt 0:00:06]} Bc6+ 74. Kd3 {[%emt 0:00:05]} Bb5+ 75. Kd2 {[%emt 0:00:30]} Ba6 76. Bb3 {[%emt 0:00:53]} Bb5 77. Nd3+ {[%emt 0:00:30]} Kb6 78. Nf4 {[%emt 0:00:30]} 1-0

[Event "Anderssen Festival 2019"]
[Site "Wroclaw"]
[Date "2019.08.08"]
[Round "5.18"]
[White "Partoens, Remi"]
[Black "Plichta, Krzysztof"]
[Result "0-1"]
[ECO "B13"]
[WhiteElo "1957"]
[BlackElo "1582"]
[Annotator "NA"]
[PlyCount "66"]
[EventDate "2019.08.05"]
[EventType "swiss"]
[EventCountry "POL"]
[SourceTitle "playchess.com"]
[Source "ChessBase"]
[SourceQuality "1"]
[TimeControl "40/5400+30:900+30"]

1. e4 {[%emt 0:00:00]} c6 {[%emt 0:03:28]} 2. d4 {[%emt 0:00:00]} d5 {[%emt 0:00:06]} 3. exd5 {[%emt 0:00:01]} cxd5 {[%emt 0:00:05]} 4. Bd3 {[%emt 0:00:05]} Nc6 {[%emt 0:00:09]} 5. c3 {[%emt 0:00:04]} Qc7 {[%emt 0:00:11]} 6. Ne2 {[%emt 0:00:43]} Bg4 {[%emt 0:00:38]} 7. f3 {[%emt 0:00:44]} Bd7 {[%emt 0:00:07]} 8. Bf4 {[%emt 0:00:33]} e5 {[%emt 0:00:08]} 9. dxe5 {[%emt 0:01:58]} Nxe5 {[%emt 0:00:12]} 10. O-O {[%emt 0:00:36]} Bd6 {[%emt 0:01:23]} 11. Bc2 {[%emt 0:13:21]} Nf6 {[%emt 0:00:24]} 12. Nd4 {[%emt 0:07:58]} O-O {[%emt 0:01:25]} 13. Nd2 {[%emt 0:06:40]} Nh5 {[%emt 0:03:35]} 14. Bg3 {[%emt 0:02:41]} Nxg3 {[%emt 0:04:07]} 15. hxg3 {[%emt 0:00:02]} Nc6 {[%emt 0:03:09]} 16. Nxc6 {[%emt 0:03:05]} bxc6 {[%emt 0:05:22]} 17. f4 {[%emt 0:00:06]} Qb6+ {[%emt 0:02:41]} 18. Kh2 {[%emt 0:01:40]} Qxb2 {[%emt 0:00:56]} 19. Rc1 {[%emt 0:07:12]} Rfe8 {[%emt 0:04:55]} 20. Nf3 {[%emt 0:00:13]} Re6 {[%emt 0:02:19]} 21. Bxh7+ {[%emt 0:08:52]} Kxh7 {[%emt 0:05:06]} 22. Ng5+ {[%emt 0:00:06]} Kg8 {[%emt 0:01:07]} 23. Nxe6 {[%emt 0:00:02]} Bxe6 {[%emt 0:09:24]} 24. f5 {[%emt 0:00:37]} Bd7 {[%emt 0:00:33]} 25. f6 {[%emt 0:03:23]} Re8 {[%emt 0:02:47]} 26. Re1 {[%emt 0:00:01]} Rxe1 {[%emt 0:01:27]} 27. Qxe1 {[%emt 0:00:05]} Be5 {[%emt 0:05:44]} 28. Rb1 {[%emt 0:00:53]} Qxc3 {[%emt 0:01:59]} 29. Rb8+ {[%emt 0:02:19]} Kh7 {[%emt 0:00:53]} 30. Qb1+ {[%emt 0:03:08]} g6 {[%emt 0:00:30]} 31. Rd8 {[%emt 0:02:56]} Qxg3+ {[%emt 0:00:29]} 32. Kg1 {[%emt 0:00:05]} Bd4+ {[%emt 0:00:12]} 33. Kh1 {[%emt 0:00:16]} Qh4# {[%emt 0:00:30]} 0-1

[Event "Anderssen Festival 2019"]
[Site "Wroclaw"]
[Date "2019.08.08"]
[Round "5.19"]
[White "Rog, Mateusz"]
[Black "Kowalczuk, Mikolaj"]
[Result "1-0"]
[ECO "B35"]
[WhiteElo "1473"]
[BlackElo "1942"]
[Annotator "NA"]
[PlyCount "49"]
[EventDate "2019.08.05"]
[EventType "swiss"]
[EventCountry "POL"]
[SourceTitle "playchess.com"]
[Source "ChessBase"]
[SourceQuality "1"]
[TimeControl "40/5400+30:900+30"]

1. e4 {[%emt 0:00:00]} c5 {[%emt 0:00:00]} 2. Nf3 {[%emt 0:00:00]} g6 {[%emt 0:00:00]} 3. d4 {[%emt 0:00:13]} cxd4 {[%emt 0:00:00]} 4. Nxd4 {[%emt 0:00:07]} Nc6 {[%emt 0:00:00]} 5. Nc3 {[%emt 0:01:08]} Bg7 {[%emt 0:00:14]} 6. Be3 {[%emt 0:00:14]} Nf6 {[%emt 0:00:05]} 7. Bc4 {[%emt 0:00:52]} O-O {[%emt 0:00:28]} 8. Bb3 {[%emt 0:00:55]} a5 {[%emt 0:00:55]} 9. a4 {[%emt 0:00:39]} d5 {[%emt 0:09:17]} 10. exd5 {[%emt 0:02:42]} Nb4 {[%emt 0:00:21]} 11. Ndb5 {[%emt 0:01:09]} Bd7 {[%emt 0:09:18]} 12. Qe2 {[%emt 0:02:24]} Rc8 {[%emt 0:23:52]} 13. O-O {[%emt 0:05:42]} Bf5 {[%emt 0:08:28]} 14. Rfd1 {[%emt 0:08:52]} Qd7 {[%emt 0:02:51]} 15. Bb6 {[%emt 0:04:35]} Ne8 {[%emt 0:06:37]} 16. Bxa5 {[%emt 0:02:07]} Na6 {[%emt 0:00:40]} 17. Bb6 {[%emt 0:05:35]} Nd6 {[%emt 0:02:33]} 18. Bd4 {[%emt 0:04:45]} Bh6 {[%emt 0:12:45]} 19. h3 {[%emt 0:03:17]} Qd8 {[%emt 0:02:50]} 20. g4 {[%emt 0:03:21]} Bd7 {[%emt 0:00:50]} 21. Nxd6 {[%emt 0:01:00]} exd6 {[%emt 0:00:05]} 22. Ne4 {[%emt 0:00:13]} f5 {[%emt 0:14:16]} 23. Nxd6 {[%emt 0:00:58]} Bf4 {[%emt 0:03:00]} 24. Nxc8 {[%emt 0:00:32]} Qxc8 {[%emt 0:01:43]} 25. d6+ {[%emt 0:00:27]} 1-0

[Event "Anderssen Festival 2019"]
[Site "Wroclaw"]
[Date "2019.08.08"]
[Round "5.20"]
[White "Wang, Ruiming"]
[Black "Nowak, Filip"]
[Result "0-1"]
[ECO "B83"]
[WhiteElo "1853"]
[BlackElo "1589"]
[Annotator "NA"]
[PlyCount "70"]
[EventDate "2019.08.05"]
[EventType "swiss"]
[EventCountry "POL"]
[SourceTitle "playchess.com"]
[Source "ChessBase"]
[SourceQuality "1"]
[TimeControl "40/5400+30:900+30"]

1. e4 {[%emt 0:00:00]} c5 {[%emt 0:00:00]} 2. Nf3 {[%emt 0:00:30]} e6 {[%emt 0:00:11]} 3. d4 {[%emt 0:00:52]} cxd4 {[%emt 0:00:15]} 4. Nxd4 {[%emt 0:00:05]} Nf6 {[%emt 0:00:42]} 5. Nc3 {[%emt 0:02:15]} d6 {[%emt 0:00:15]} 6. Be2 {[%emt 0:05:51]} Be7 {[%emt 0:00:21]} 7. O-O {[%emt 0:00:36]} O-O {[%emt 0:00:10]} 8. Be3 {[%emt 0:01:02]} Nc6 {[%emt 0:00:52]} 9. h3 {[%emt 0:06:40]} a6 {[%emt 0:00:52]} 10. Bf3 {[%emt 0:07:18]} Qc7 {[%emt 0:02:57]} 11. a4 {[%emt 0:11:18]} Bd7 {[%emt 0:03:29]} 12. Nb3 {[%emt 0:02:00]} Ne5 {[%emt 0:10:29]} 13. Be2 {[%emt 0:01:59]} Bc6 {[%emt 0:09:21]} 14. f4 {[%emt 0:08:19]} Ned7 {[%emt 0:01:24]} 15. Bf3 {[%emt 0:02:00]} b6 {[%emt 0:01:12]} 16. Nd4 {[%emt 0:04:58]} Bb7 {[%emt 0:02:05]} 17. Qe1 {[%emt 0:13:53]} Rac8 {[%emt 0:02:57]} 18. Bd2 {[%emt 0:06:41]} Rfe8 {[%emt 0:02:46]} 19. Qg3 {[%emt 0:02:36]} Bf8 {[%emt 0:04:16]} 20. Rae1 {[%emt 0:02:11]} e5 {[%emt 0:05:01]} 21. Nf5 {[%emt 0:03:02]} Kh8 {[%emt 0:03:39]} 22. Kh1 {[%emt 0:02:47]} Nc5 {[%emt 0:02:00]} 23. fxe5 {[%emt 0:03:07]} dxe5 {[%emt 0:01:13]} 24. Bg5 {[%emt 0:01:34]} Nfd7 {[%emt 0:02:31]} 25. Bh5 {[%emt 0:04:10]} g6 {[%emt 0:08:10]} 26. Nh6 {[%emt 0:01:28]} Bxh6 {[%emt 0:00:37]} 27. Bxh6 {[%emt 0:00:16]} f6 {[%emt 0:00:10]} 28. Bxg6 {[%emt 0:01:50]} Rg8 {[%emt 0:04:43]} 29. Qh4 {[%emt 0:02:47]} Rxg6 {[%emt 0:03:09]} 30. g4 {[%emt 0:00:22]} Rcg8 {[%emt 0:06:27]} 31. Rf5 {[%emt 0:01:08]} Qd6 {[%emt 0:00:53]} 32. g5 {[%emt 0:01:14]} Qe6 {[%emt 0:09:53]} 33. b4 {[%emt 0:00:30]} Qxf5 {[%emt 0:00:52]} 34. bxc5 {[%emt 0:00:16]} Nxc5 {[%emt 0:00:58]} 35. Kh2 {[%emt 0:00:30]} Qf4+ {[%emt 0:00:58]} 0-1

[Event "Anderssen Festival 2019"]
[Site "Wroclaw"]
[Date "2019.08.08"]
[Round "6.1"]
[White "Naumkin, Igor"]
[Black "Eggink, Ryszard"]
[Result "0-1"]
[ECO "E15"]
[WhiteElo "2368"]
[BlackElo "2377"]
[Annotator "NA"]
[PlyCount "90"]
[EventDate "2019.08.05"]
[EventType "swiss"]
[EventCountry "POL"]
[SourceTitle "playchess.com"]
[Source "ChessBase"]
[SourceQuality "1"]
[TimeControl "40/5400+30:900+30"]

1. d4 {[%emt 0:05:18]} Nf6 {[%emt 0:00:00]} 2. c4 {[%emt 0:00:16]} e6 {[%emt 0:00:00]} 3. Nf3 {[%emt 0:00:06]} b6 {[%emt 0:00:19]} 4. g3 {[%emt 0:00:08]} Bb4+ {[%emt 0:00:16]} 5. Bd2 {[%emt 0:00:51]} a5 {[%emt 0:00:02]} 6. Bg2 {[%emt 0:00:26]} Bb7 {[%emt 0:00:04]} 7. O-O {[%emt 0:00:44]} O-O {[%emt 0:00:03]} 8. Nc3 {[%emt 0:03:54]} Bxc3 {[%emt 0:08:51]} 9. Bxc3 {[%emt 0:00:21]} d5 {[%emt 0:00:27]} 10. b3 {[%emt 0:02:22]} Nbd7 {[%emt 0:01:46]} 11. Qc2 {[%emt 0:01:50]} dxc4 {[%emt 0:09:34]} 12. bxc4 {[%emt 0:03:26]} Be4 {[%emt 0:01:40]} 13. Qb2 {[%emt 0:01:26]} Qc8 {[%emt 0:00:30]} 14. Bh3 {[%emt 0:02:48]} Qd8 {[%emt 0:35:31]} 15. Rad1 {[%emt 0:08:28]} Qe7 {[%emt 0:03:01]} 16. Nd2 {[%emt 0:07:13]} Bb7 {[%emt 0:03:24]} 17. Rfe1 {[%emt 0:10:21]} c5 {[%emt 0:05:20]} 18. d5 {[%emt 0:02:50]} exd5 {[%emt 0:00:05]} 19. cxd5 {[%emt 0:01:16]} Bxd5 {[%emt 0:01:13]} 20. Bxd7 {[%emt 0:03:05]} Nxd7 {[%emt 0:00:01]} 21. Bxg7 {[%emt 0:00:19]} Rfe8 {[%emt 0:00:07]} 22. Nf1 {[%emt 0:03:51]} Bc6 {[%emt 0:01:50]} 23. Bh6 {[%emt 0:02:20]} Qf6 {[%emt 0:01:20]} 24. Qxf6 {[%emt 0:01:24]} Nxf6 {[%emt 0:00:02]} 25. Ne3 {[%emt 0:00:42]} Re6 {[%emt 0:01:13]} 26. Nf5 {[%emt 0:07:23]} Be4 {[%emt 0:01:26]} 27. Nd6 {[%emt 0:01:21]} Bd5 {[%emt 0:00:09]} 28. Nb5 {[%emt 0:02:14]} Rc8 {[%emt 0:01:16]} 29. Rd2 {[%emt 0:02:17]} Bc6 {[%emt 0:05:17]} 30. Nd6 {[%emt 0:01:38]} Rd8 {[%emt 0:01:15]} 31. Red1 {[%emt 0:01:33]} Rd7 {[%emt 0:01:21]} 32. Nc4 {[%emt 0:06:05]} Rxe2 {[%emt 0:03:32]} 33. Nxb6 {[%emt 0:00:23]} Rdxd2 {[%emt 0:00:54]} 34. Bxd2 {[%emt 0:00:09]} Ng4 {[%emt 0:02:39]} 35. Bc3 {[%emt 0:01:43]} Kf8 {[%emt 0:00:57]} 36. Rd6 {[%emt 0:07:42]} Bf3 {[%emt 0:01:24]} 37. Nd5 {[%emt 0:00:30]} f5 {[%emt 0:02:16]} 38. Ne3 {[%emt 0:03:44]} Rxa2 {[%emt 0:04:26]} 39. Nxf5 {[%emt 0:01:56]} Rc2 {[%emt 0:02:20]} 40. Be1 {[%emt 0:00:00]} Rc1 {[%emt 0:00:00]} 41. Re6 {[%emt 0:02:46]} Kf7 {[%emt 0:01:38]} 42. Re7+ {[%emt 0:00:23]} Kf6 {[%emt 0:00:04]} 43. h3 {[%emt 0:01:32]} Ne5 {[%emt 0:00:16]} 44. g4 {[%emt 0:02:25]} Rxe1+ {[%emt 0:00:07]} 45. Kh2 {[%emt 0:00:04]} Nxg4+ {[%emt 0:00:04]} 0-1

[Event "Anderssen Festival 2019"]
[Site "Wroclaw"]
[Date "2019.08.08"]
[Round "6.2"]
[White "Gutenev, Alexander"]
[Black "Piotrowski, Przemyslaw"]
[Result "1-0"]
[ECO "B67"]
[WhiteElo "2470"]
[BlackElo "2273"]
[Annotator "ChessBase"]
[PlyCount "97"]
[EventDate "2019.08.05"]
[EventType "swiss"]
[EventCountry "POL"]
[SourceTitle "playchess.com"]
[Source "ChessBase"]
[SourceQuality "1"]
[TimeControl "40/5400+30:900+30"]

1. e4 {[%emt 0:05:20]} c5 {[%emt 0:00:00]} 2. Nf3 {[%emt 0:00:04]} d6 {[%emt 0:00:00]} 3. d4 {[%emt 0:00:08]} cxd4 {[%emt 0:00:00]} 4. Nxd4 {[%emt 0:00:03]} Nf6 {[%emt 0:00:00]} 5. Nc3 {[%emt 0:00:08]} Nc6 {[%emt 0:00:00]} 6. Bg5 {[%emt 0:00:07]} e6 {[%emt 0:00:01]} 7. Qd2 {[%emt 0:00:13]} a6 {[%emt 0:00:04]} 8. O-O-O {[%emt 0:00:12]} Bd7 {[%emt 0:00:03]} 9. f4 {[%emt 0:00:36]} b5 {[%emt 0:00:05]} 10. Bxf6 {[%emt 0:00:12]} gxf6 {[%emt 0:00:05]} 11. Kb1 {[%emt 0:00:11]} Qb6 {[%emt 0:00:05]} 12. Nce2 {[%emt 0:06:02]} h5 {[%emt 0:07:43]} 13. h4 {[%emt 0:01:35]} Rg8 {[%emt 0:04:00]} 14. Rh3 {[%emt 0:06:35]} O-O-O {[%emt 0:07:21]} 15. Rd3 {[%emt 0:13:14]} Be7 {[%emt 0:06:51]} 16. g3 {[%emt 0:03:55]} Kb8 {[%emt 0:01:52]} 17. Bg2 {[%emt 0:01:12]} Rc8 {[%emt 0:03:34]} 18. Nxc6+ {[%emt 0:03:31]} Bxc6 {[%emt 0:01:07]} 19. f5 {[%emt 0:01:26]} exf5 {[%emt 0:08:42]} 20. Nc3 {[%emt 0:02:54]} b4 {[%emt 0:01:33]} 21. Nd5 {[%emt 0:00:19]} Bxd5 {[%emt 0:00:12]} 22. exd5 {[%emt 0:09:35]} Rc4 {[%emt 0:02:16]} 23. Rb3 {[%emt 0:07:58]} a5 {[%emt 0:02:07]} 24. a3 {[%emt 0:04:55]} a4 {[%emt 0:13:45]} 25. Re3 {[%emt 0:02:20]} bxa3 {[%emt 0:03:29]} 26. Rxa3 {[%emt 0:00:07]} Rgg4 {[%emt 0:05:54]} 27. Qe2 {[%emt 0:04:10]} Bd8 {[%emt 0:04:24]} 28. Bf3 {[%emt 0:03:59]} Rgd4 {[%emt 0:00:52]} 29. c3 {[%emt 0:00:04]} Rxd1+ {[%emt 0:00:20]} 30. Qxd1 {[%emt 0:00:02]} Rc7 {[%emt 0:10:38]} 31. Qc2 {[%emt 0:07:16]} Rb7 {[%emt 0:02:05]} 32. Ka2 {[%emt 0:03:27]} Qb3+ {[%emt 0:05:09]} 33. Qxb3 {[%emt 0:07:59]} axb3+ {[%emt 0:00:04]} 34. Rxb3 {[%emt 0:00:05]} f4 {[%emt 0:01:49]} 35. Bxh5 {[%emt 0:01:10]} fxg3 {[%emt 0:00:12]} 36. Bf3 {[%emt 0:00:02]} f5 {[%emt 0:00:25]} 37. h5 {[%emt 0:00:03]} Bg5 {[%emt 0:00:24]} 38. c4 {[%emt 0:00:10]} Kc7 {[%emt 0:03:15]} 39. Rxb7+ {[%emt 0:00:49]} Kxb7 {[%emt 0:00:04]} 40. b4 {[%emt 0:00:00]} Kb6 {[%emt 0:00:00]} 41. Kb3 {[%emt 0:00:15]} f4 {[%emt 0:00:27]} 42. Kc3 {[%emt 0:00:21]} f5 {[%emt 0:00:04]} 43. Kd3 {[%emt 0:00:15]} Bh6 {[%emt 0:00:25]} 44. Bg2 {[%emt 0:00:03]} Bg7 {[%emt 0:00:21]} 45. Kd2 {[%emt 0:00:33]} Kc7 {[%emt 0:02:16]} 46. Ke2 {[%emt 0:06:07]} Kd7 {[%emt 0:07:11]} 47. Kf3 {[%emt 0:05:54]} Bh6 {[%emt 0:06:48]} 48. Bh3 {[%emt 0:02:13]} Ke7 {[%emt 0:04:16]} 49. b5 {[%emt 0:00:46]} 1-0

[Event "Anderssen Festival 2019"]
[Site "Wroclaw"]
[Date "2019.08.08"]
[Round "6.3"]
[White "Dubinski, Mateusz"]
[Black "Chernyshov, Konstantin"]
[Result "1-0"]
[ECO "A45"]
[WhiteElo "2306"]
[BlackElo "2446"]
[Annotator "NA"]
[PlyCount "155"]
[EventDate "2019.08.05"]
[EventType "swiss"]
[EventCountry "POL"]
[SourceTitle "playchess.com"]
[Source "ChessBase"]
[SourceQuality "1"]
[TimeControl "40/5400+30:900+30"]

1. d4 {[%emt 0:00:00]} Nf6 {[%emt 0:00:00]} 2. g3 {[%emt 0:00:00]} c5 {[%emt 0:00:57]} 3. c3 {[%emt 0:05:10]} e6 {[%emt 0:03:51]} 4. Bg2 {[%emt 0:00:17]} d5 {[%emt 0:00:06]} 5. Nf3 {[%emt 0:00:25]} Nc6 {[%emt 0:00:16]} 6. O-O {[%emt 0:00:18]} Be7 {[%emt 0:00:42]} 7. dxc5 {[%emt 0:05:04]} Bxc5 {[%emt 0:00:30]} 8. c4 {[%emt 0:00:04]} dxc4 {[%emt 0:08:33]} 9. Qa4 {[%emt 0:00:30]} O-O {[%emt 0:02:59]} 10. Qxc4 {[%emt 0:00:57]} Qd5 {[%emt 0:00:18]} 11. Qxd5 {[%emt 0:04:04]} Nxd5 {[%emt 0:00:08]} 12. a3 {[%emt 0:00:24]} a5 {[%emt 0:03:18]} 13. e4 {[%emt 0:05:10]} Nc7 {[%emt 0:01:47]} 14. Nc3 {[%emt 0:04:12]} e5 {[%emt 0:01:48]} 15. Be3 {[%emt 0:06:54]} Bxe3 {[%emt 0:03:43]} 16. fxe3 {[%emt 0:00:05]} Be6 {[%emt 0:00:10]} 17. Ng5 {[%emt 0:11:39]} Bc4 {[%emt 0:07:32]} 18. Rfc1 {[%emt 0:00:30]} h6 {[%emt 0:00:19]} 19. Nd5 {[%emt 0:14:59]} Nxd5 {[%emt 0:00:16]} 20. exd5 {[%emt 0:00:24]} Bxd5 {[%emt 0:00:04]} 21. Bxd5 {[%emt 0:00:06]} hxg5 {[%emt 0:00:06]} 22. Rc5 {[%emt 0:01:31]} a4 {[%emt 0:08:01]} 23. Rf1 {[%emt 0:03:21]} g4 {[%emt 0:02:45]} 24. Bxc6 {[%emt 0:12:43]} bxc6 {[%emt 0:04:51]} 25. Rxe5 {[%emt 0:00:06]} Rfe8 {[%emt 0:10:32]} 26. Ref5 {[%emt 0:09:27]} Ra7 {[%emt 0:03:37]} 27. R5f4 {[%emt 0:00:13]} Rxe3 {[%emt 0:01:04]} 28. Rxg4 {[%emt 0:00:14]} c5 {[%emt 0:04:12]} 29. Rc4 {[%emt 0:07:34]} Ra5 {[%emt 0:05:13]} 30. Rf5 {[%emt 0:03:19]} Re1+ {[%emt 0:00:42]} 31. Rf1 {[%emt 0:00:40]} Re5 {[%emt 0:04:58]} 32. Rff4 {[%emt 0:00:34]} Re1+ {[%emt 0:00:36]} 33. Kf2 {[%emt 0:02:12]} Rb1 {[%emt 0:00:12]} 34. Rc2 {[%emt 0:00:05]} Kf8 {[%emt 0:02:04]} 35. Ke3 {[%emt 0:00:34]} Rb5 {[%emt 0:02:59]} 36. Rff2 {[%emt 0:01:40]} Rd1 {[%emt 0:01:27]} 37. Rfd2 {[%emt 0:00:55]} Rxd2 {[%emt 0:00:38]} 38. Kxd2 {[%emt 0:00:07]} Ke7 {[%emt 0:00:05]} 39. Kc1 {[%emt 0:00:31]} Kd6 {[%emt 0:00:09]} 40. Rc4 {[%emt 0:00:00]} Ra5 {[%emt 0:00:00]} 41. Kc2 {[%emt 0:00:18]} Ra7 {[%emt 0:01:23]} 42. Kc3 {[%emt 0:01:56]} f5 {[%emt 0:02:46]} 43. Rh4 {[%emt 0:03:02]} Kd5 {[%emt 0:05:39]} 44. Rh8 {[%emt 0:00:43]} g5 {[%emt 0:01:47]} 45. Rg8 {[%emt 0:04:32]} g4 {[%emt 0:08:20]} 46. Rd8+ {[%emt 0:00:10]} Ke4 {[%emt 0:00:06]} 47. Rd2 {[%emt 0:00:57]} Ke3 {[%emt 0:06:03]} 48. Rd5 {[%emt 0:02:30]} Ke4 {[%emt 0:00:15]} 49. Kc4 {[%emt 0:00:31]} Rb7 {[%emt 0:00:11]} 50. Rd2 {[%emt 0:00:08]} Ke3 {[%emt 0:00:07]} 51. Rc2 {[%emt 0:01:55]} Ke4 {[%emt 0:00:13]} 52. Rf2 {[%emt 0:02:18]} Ke3 {[%emt 0:00:06]} 53. Rc2 {[%emt 0:00:03]} Ke4 {[%emt 0:00:06]} 54. Rf2 {[%emt 0:00:25]} Ke3 {[%emt 0:00:07]} 55. Rxf5 {[%emt 0:02:05]} Rxb2 {[%emt 0:00:06]} 56. Kxc5 {[%emt 0:00:05]} Rxh2 {[%emt 0:00:34]} 57. Rf4 {[%emt 0:00:21]} Rg2 {[%emt 0:03:05]} 58. Rxg4 {[%emt 0:00:09]} Kf3 {[%emt 0:00:05]} 59. Rxa4 {[%emt 0:01:22]} Rxg3 {[%emt 0:00:10]} 60. Rc4 {[%emt 0:03:06]} Rg5+ {[%emt 0:01:36]} 61. Kb6 {[%emt 0:00:13]} Rg6+ {[%emt 0:01:07]} 62. Kb5 {[%emt 0:00:46]} Rg5+ {[%emt 0:02:25]} 63. Rc5 {[%emt 0:00:16]} Rg8 {[%emt 0:00:06]} 64. a4 {[%emt 0:00:22]} Ke4 {[%emt 0:00:05]} 65. a5 {[%emt 0:00:37]} Kd4 {[%emt 0:01:28]} 66. Rh5 {[%emt 0:00:12]} Rb8+ {[%emt 0:03:36]} 67. Kc6 {[%emt 0:00:19]} Rb1 {[%emt 0:00:05]} 68. a6 {[%emt 0:00:35]} Rc1+ {[%emt 0:00:20]} 69. Kb6 {[%emt 0:00:34]} Rg1 {[%emt 0:01:28]} 70. Rh6 {[%emt 0:01:38]} Rb1+ {[%emt 0:04:10]} 71. Kc6 {[%emt 0:00:10]} Ra1 {[%emt 0:00:26]} 72. Kb7 {[%emt 0:00:29]} Kc5 {[%emt 0:00:05]} 73. a7 {[%emt 0:00:57]} Rb1+ {[%emt 0:00:06]} 74. Kc7 {[%emt 0:00:02]} Ra1 {[%emt 0:00:06]} 75. Rh5+ {[%emt 0:00:11]} Kc4 {[%emt 0:00:10]} 76. Kb7 {[%emt 0:00:46]} Rb1+ {[%emt 0:00:05]} 77. Kc8 {[%emt 0:00:10]} Ra1 {[%emt 0:00:17]} 78. Rh7 {[%emt 0:00:17]} 1-0